[Event "FINAL CAMPEONATO ABSOLUTO DE AJEDREZ CHILE 2018"]
[Site "CENTRO CULTURAL LO PRADO, Chile"]
[Date "2018.02.27"]
[Round "6.4"]
[White "HENRIQUEZ VILLAGRA, Cristobal"]
[Black "GARCIA CARDENAS, Pablo"]
[Result "1/2-1/2"]
[TimeControl "90 minutos mas 30 segundos de incremento por movida"]
[WhiteTitle "GM"]
[BlackTitle "IM"]
[WhiteElo "2501"]
[BlackElo "2454"]

1. e4 {[%clk 01:30:57]} {[%emt 00:00:02]} e5 {[%clk 01:30:54]} {[%emt
00:00:06]} 2. Nf3 {[%clk 01:31:23]} {[%emt 00:00:04]} Nc6 {[%clk 01:31:18]}
{[%emt 00:00:05]} 3. Bb5 {[%clk 01:31:49]} {[%emt 00:00:04]} a6 {[%clk
01:31:44]} {[%emt 00:00:05]} 4. Ba4 {[%clk 01:32:15]} {[%emt 00:00:05]} Nf6
{[%clk 01:32:05]} {[%emt 00:00:09]} 5. O-O {[%clk 01:32:36]} {[%emt 00:00:08]}
b5 {[%clk 01:32:31]} {[%emt 00:00:03]} 6. Bb3 {[%clk 01:33:01]} {[%emt
00:00:05]} Bc5 {[%clk 01:32:56]} {[%emt 00:00:05]} 7. a4 {[%clk 01:25:46]}
{[%emt 00:07:46]} Rb8 {[%clk 01:29:00]} {[%emt 00:04:26]} 8. c3 {[%clk
01:26:00]} {[%emt 00:00:17]} d6 {[%clk 01:29:11]} {[%emt 00:00:19]} 9. d4
{[%clk 01:26:07]} {[%emt 00:00:22]} Bb6 {[%clk 01:29:27]} {[%emt 00:00:15]} 10.
a5 {[%clk 01:26:17]} {[%emt 00:00:20]} Ba7 {[%clk 01:28:43]} {[%emt 00:01:14]}
11. h3 {[%clk 01:24:18]} {[%emt 00:02:28]} O-O {[%clk 01:21:22]} {[%emt
00:07:51]} 12. Be3 {[%clk 01:14:00]} {[%emt 00:10:49]} Ra8 {[%clk 01:19:09]}
{[%emt 00:02:43]} 13. Nbd2 {[%clk 01:07:23]} {[%emt 00:07:06]} Bb7 {[%clk
01:17:12]} {[%emt 00:02:28]} 14. Re1 {[%clk 00:53:02]} {[%emt 00:14:51]} exd4
{[%clk 01:12:12]} {[%emt 00:05:30]} 15. cxd4 {[%clk 00:51:33]} {[%emt
00:01:59]} Nb4 {[%clk 01:12:35]} {[%emt 00:00:06]} 16. Qb1 {[%clk 00:43:56]}
{[%emt 00:08:07]} h6 {[%emt 00:33:57]} 1/2-1/2

[Event "FINAL CAMPEONATO ABSOLUTO DE AJEDREZ CHILE 2018"]
[Site "CENTRO CULTURAL LO PRADO, Chile"]
[Date "2018.02.27"]
[Round "6.5"]
[White "LOPEZ SILVA, Hugo Andres"]
[Black "DIAZ VILLAGRAN, Robert"]
[Result "1-0"]
[TimeControl "90 minutos mas 30 segundos de incremento por movida"]
[BlackTitle "FM"]
[WhiteElo "2389"]
[BlackElo "2317"]

1. e4 {[%clk 01:17:29]} {[%emt 00:13:30]} e6 {[%clk 01:30:06]} {[%emt
00:00:55]} 2. d4 {[%clk 01:17:50]} {[%emt 00:00:08]} d5 {[%clk 01:30:22]}
{[%emt 00:00:15]} 3. Bd3 {[%clk 01:17:55]} {[%emt 00:00:25]} dxe4 {[%clk
01:22:50]} {[%emt 00:08:03]} 4. Bxe4 {[%clk 01:18:21]} {[%emt 00:00:03]} Nf6
{[%clk 01:23:11]} {[%emt 00:00:10]} 5. Bf3 {[%clk 01:18:48]} {[%emt 00:00:02]}
Nc6 {[%clk 01:23:23]} {[%emt 00:00:18]} 6. Ne2 {[%clk 01:18:21]} {[%emt
00:00:57]} e5 {[%clk 01:23:02]} {[%emt 00:00:52]} 7. Bxc6+ {[%clk 01:05:55]}
{[%emt 00:12:56]} bxc6 {[%clk 01:23:25]} {[%emt 00:00:07]} 8. O-O {[%clk
01:06:22]} {[%emt 00:00:02]} Bd6 {[%clk 01:11:02]} {[%emt 00:12:53]} 9. Nbc3
{[%clk 00:50:10]} {[%emt 00:16:42]} Rb8 {[%clk 01:02:23]} {[%emt 00:09:09]} 10.
b3 {[%clk 00:45:39]} {[%emt 00:05:01]} Ba6 {[%clk 00:56:15]} {[%emt 00:06:38]}
11. Re1 {[%clk 00:37:46]} {[%emt 00:08:23]} O-O {[%clk 00:52:22]} {[%emt
00:04:23]} 12. dxe5 {[%clk 00:33:30]} {[%emt 00:04:47]} Bxe5 {[%clk 00:49:09]}
{[%emt 00:03:43]} 13. Bf4 {[%clk 00:33:29]} {[%emt 00:00:30]} Bd6 {[%clk
00:41:46]} {[%emt 00:07:52]} 14. Bxd6 {[%clk 00:29:39]} {[%emt 00:04:21]} cxd6
{[%clk 00:39:27]} {[%emt 00:02:49]} 15. Nd4 {[%clk 00:29:49]} {[%emt 00:00:20]}
Qd7 {[%clk 00:35:33]} {[%emt 00:04:24]} 16. Qf3 {[%clk 00:28:29]} {[%emt
00:01:50]} Bb7 {[%clk 00:35:04]} {[%emt 00:00:59]} 17. Qf4 {[%clk 00:21:04]}
{[%emt 00:07:55]} Bc8 {[%clk 00:19:29]} {[%emt 00:16:06]} 18. Rad1 {[%clk
00:16:57]} {[%emt 00:04:37]} Re8 {[%clk 00:17:20]} {[%emt 00:02:38]} 19. Rxe8+
{[%clk 00:14:26]} {[%emt 00:03:01]} Nxe8 {[%clk 00:17:43]} {[%emt 00:00:07]} 20.
h3 {[%clk 00:14:34]} {[%emt 00:00:22]} c5 {[%clk 00:12:55]} {[%emt 00:05:17]}
21. Nf3 {[%clk 00:12:10]} {[%emt 00:02:54]} Bb7 {[%clk 00:13:00]} {[%emt
00:00:25]} 22. Nd2 {[%clk 00:10:14]} {[%emt 00:02:26]} Rd8 {[%clk 00:09:08]}
{[%emt 00:04:22]} 23. Nde4 {[%clk 00:10:09]} {[%emt 00:00:34]} Qe7 {[%clk
00:09:29]} {[%emt 00:00:10]} 24. Nd5 {[%clk 00:09:49]} {[%emt 00:00:51]} Qf8
{[%clk 00:03:50]} {[%emt 00:06:09]} 25. c4 {[%clk 00:07:57]} {[%emt 00:02:22]}
h6 {[%clk 00:04:19]} 26. g4 {[%clk 00:07:44]} {[%emt 00:00:42]} Bxd5 {[%clk
00:03:02]} {[%emt 00:01:47]} 27. Rxd5 {[%clk 00:08:10]} {[%emt 00:00:04]} Nc7
{[%clk 00:03:28]} {[%emt 00:00:04]} 28. Rxd6 {[%clk 00:07:03]} {[%emt
00:01:38]} Ne6 {[%clk 00:03:57]} 29. Qe5 {[%clk 00:07:00]} {[%emt 00:00:33]}
Rxd6 {[%clk 00:02:37]} {[%emt 00:01:51]} 30. Qxd6 {[%clk 00:07:10]} {[%emt
00:00:20]} Qc8 {[%clk 00:02:42]} {[%emt 00:00:24]} 31. Qe7 {[%clk 00:06:02]}
{[%emt 00:01:38]} Qc6 {[%clk 00:01:34]} {[%emt 00:01:39]} 32. f3 {[%clk
00:03:26]} {[%emt 00:03:06]} Nf4 {[%clk 00:00:56]} {[%emt 00:01:08]} 33. Qxc5
{[%clk 00:02:34]} {[%emt 00:01:22]} Qa6 {[%clk 00:00:58]} {[%emt 00:00:28]} 34.
Qb5 {[%clk 00:01:57]} {[%emt 00:01:07]} Ne2+ {[%clk 00:00:59]} {[%emt
00:00:29]} 35. Kf2 {[%clk 00:02:26]} Qxa2 {[%clk 00:01:23]} {[%emt 00:00:07]}
36. Qe8+ {[%clk 00:02:48]} {[%emt 00:00:08]} Kh7 {[%clk 00:01:52]} {[%emt
00:00:01]} 37. Nf6 {[%clk 00:03:07]} {[%emt 00:00:11]} gxf6 {[%clk 00:02:19]}
{[%emt 00:00:03]} 38. Qxf7 {[%clk 00:03:33]} {[%emt 00:00:04]} Kh8 {[%clk
00:02:39]} {[%emt 00:00:10]} 39. Qxf6 {[%clk 00:03:58]} {[%emt 00:00:06]} Kg8
{[%clk 00:02:09]} {[%emt 00:01:00]} 40. Qg6+ {[%clk 00:03:08]} {[%emt
00:01:20]} Kf8 {[%clk 00:02:25]} {[%emt 00:00:14]} 41. Qxh6+ {[%clk 00:03:20]}
{[%emt 00:00:18]} Kf7 {[%clk 00:02:43]} {[%emt 00:00:12]} 42. Qh5+ {[%clk
00:03:49]} {[%emt 00:00:01]} Kf6 {[%clk 00:00:59]} {[%emt 00:02:15]} 43. Qf5+
{[%clk 00:04:10]} {[%emt 00:00:08]} Kg7 {[%clk 00:01:28]} 44. Qe5+ {[%clk
00:04:32]} {[%emt 00:00:08]} Kf7 {[%clk 00:01:57]} 45. Qxe2 {[%clk 00:03:57]}
{[%emt 00:01:05]} Qxb3 {[%clk 00:02:26]} {[%emt 00:00:01]} 46. Qe3 {[%clk
00:02:38]} {[%emt 00:01:49]} Qa2+ {[%clk 00:02:48]} {[%emt 00:00:08]} 47. Kg3
{[%clk 00:02:55]} {[%emt 00:00:13]} a5 {[%clk 00:03:17]} {[%emt 00:00:01]} 48.
Qf4+ {[%clk 00:02:41]} {[%emt 00:00:44]} Kg7 {[%clk 00:03:13]} {[%emt
00:00:33]} 49. Qe5+ {[%clk 00:01:57]} {[%emt 00:01:14]} Kf7 {[%clk 00:03:31]}
{[%emt 00:00:13]} 50. g5 {[%clk 00:02:09]} {[%emt 00:00:18]} Qxc4 {[%clk
00:02:08]} {[%emt 00:01:53]} 51. Qxa5 {[%clk 00:02:07]} {[%emt 00:00:32]} Qf1
{[%clk 00:02:30]} {[%emt 00:00:08]} 52. Qf5+ {[%clk 00:01:56]} {[%emt
00:00:42]} Kg7 {[%clk 00:02:47]} {[%emt 00:00:13]} 53. Qf6+ {[%clk 00:02:05]}
{[%emt 00:00:21]} Kg8 {[%clk 00:03:16]} {[%emt 00:00:01]} 54. Qe6+ {[%clk
00:01:10]} {[%emt 00:01:24]} Kg7 {[%clk 00:03:44]} {[%emt 00:00:02]} 55. Qe3
{[%clk 00:01:32]} {[%emt 00:00:09]} Kg6 {[%clk 00:03:43]} {[%emt 00:00:31]} 56.
h4 {[%clk 00:01:55]} {[%emt 00:00:06]} Kh5 {[%clk 00:03:52]} {[%emt 00:00:21]}
57. Qe8 {[%emt 00:00:04]} 1-0

[Event "FINAL CAMPEONATO ABSOLUTO DE AJEDREZ CHILE 2018"]
[Site "CENTRO CULTURAL LO PRADO, Chile"]
[Date "2018.02.27"]
[Round "6.6"]
[White "PEREZ GORMAZ, Matias"]
[Black "BARRIA ZUNIGA, Daniel"]
[Result "1/2-1/2"]
[TimeControl "90 minutos mas 30 segundos de incremento por movida"]
[WhiteTitle "FM"]
[BlackTitle "IM"]
[BlackFideId "3400816"]
[WhiteElo "2410"]
[BlackElo "2395"]

1. Nf3 {[%clk 01:30:50]} {[%emt 00:00:08]} d5 {[%clk 01:30:19]} {[%emt
00:00:42]} 2. d4 {[%clk 01:31:06]} {[%emt 00:00:15]} e6 {[%clk 01:30:30]}
{[%emt 00:00:18]} 3. Bf4 {[%clk 01:31:21]} {[%emt 00:00:15]} Nf6 {[%clk
01:30:41]} {[%emt 00:00:19]} 4. e3 {[%clk 01:31:37]} {[%emt 00:00:14]} Be7
{[%clk 01:30:51]} {[%emt 00:00:19]} 5. Nbd2 {[%clk 01:19:50]} {[%emt 00:12:18]}
O-O {[%clk 01:25:18]} {[%emt 00:06:02]} 6. Bd3 {[%clk 01:19:44]} {[%emt
00:00:37]} b6 {[%clk 01:24:18]} {[%emt 00:01:30]} 7. Ne5 {[%clk 01:02:21]}
{[%emt 00:17:53]} Ba6 {[%clk 01:15:11]} {[%emt 00:09:35]} 8. Bxa6 {[%clk
00:57:58]} {[%emt 00:04:56]} Nxa6 {[%clk 01:15:16]} {[%emt 00:00:24]} 9. O-O
{[%clk 00:56:31]} {[%emt 00:01:57]} Nb8 {[%clk 01:01:53]} {[%emt 00:13:52]} 10.
c4 {[%clk 00:52:42]} {[%emt 00:04:20]} c5 {[%clk 00:49:56]} {[%emt 00:12:27]}
11. dxc5 {[%clk 00:40:59]} {[%emt 00:12:13]} bxc5 {[%clk 00:50:08]} {[%emt
00:00:18]} 12. Qc2 {[%clk 00:33:27]} {[%emt 00:08:03]} Qb6 {[%clk 00:46:53]}
{[%emt 00:03:42]} 13. cxd5 {[%clk 00:31:53]} {[%emt 00:02:06]} exd5 {[%clk
00:43:13]} {[%emt 00:04:10]} 14. e4 {[%clk 00:30:47]} {[%emt 00:01:36]} Nc6
{[%clk 00:39:47]} {[%emt 00:03:55]} 15. Nxc6 {[%clk 00:21:11]} {[%emt
00:10:07]} Qxc6 {[%clk 00:40:13]} {[%emt 00:00:04]} 16. exd5 {[%clk 00:19:43]}
{[%emt 00:01:58]} Nxd5 {[%clk 00:39:29]} {[%emt 00:01:13]} 1/2-1/2

[Event "FINAL CAMPEONATO ABSOLUTO DE AJEDREZ CHILE 2018"]
[Site "CENTRO CULTURAL LO PRADO, Chile"]
[Date "2018.02.28"]
[Round "7.2"]
[White "DIAZ VILLAGRAN, Robert"]
[Black "PEREZ GORMAZ, Matias"]
[Result "0-1"]
[TimeControl "90 minutos mas 30 segundos de incremento por movida"]
[WhiteTitle "FM"]
[BlackTitle "FM"]
[WhiteElo "2317"]
[BlackElo "2410"]

1. e4 {[%clk 01:20:22]} {[%emt 00:10:37]} e5 {[%clk 01:30:10]} {[%emt
00:00:50]} 2. Nf3 {[%clk 01:20:41]} {[%emt 00:00:11]} Nc6 {[%clk 01:30:33]}
{[%emt 00:00:07]} 3. Bb5 {[%clk 01:19:02]} {[%emt 00:02:10]} a6 {[%clk
01:30:54]} {[%emt 00:00:09]} 4. Ba4 {[%clk 01:19:27]} {[%emt 00:00:05]} Nf6
{[%clk 01:31:12]} {[%emt 00:00:11]} 5. Qe2 {[%clk 01:19:38]} {[%emt 00:00:20]}
Be7 {[%clk 01:15:01]} {[%emt 00:16:41]} 6. c3 {[%clk 01:18:28]} {[%emt
00:01:41]} b5 {[%clk 01:15:24]} {[%emt 00:00:06]} 7. Bb3 {[%clk 01:18:52]}
{[%emt 00:00:06]} O-O {[%clk 01:15:47]} {[%emt 00:00:06]} 8. O-O {[%clk
01:18:55]} {[%emt 00:00:27]} d5 {[%clk 01:15:47]} {[%emt 00:00:30]} 9. d3
{[%clk 01:18:08]} {[%emt 00:01:18]} Be6 {[%clk 01:08:16]} {[%emt 00:08:01]} 10.
Rd1 {[%clk 01:16:13]} {[%emt 00:02:25]} Re8 {[%clk 01:07:07]} {[%emt 00:01:39]}
11. Nbd2 {[%clk 01:14:39]} {[%emt 00:02:04]} h6 {[%clk 01:07:08]} {[%emt
00:00:29]} 12. Nf1 {[%clk 01:14:42]} {[%emt 00:00:27]} Bf8 {[%clk 01:07:31]}
{[%emt 00:00:08]} 13. h3 {[%clk 01:13:20]} {[%emt 00:01:52]} g6 {[%clk
00:43:11]} {[%emt 00:24:49]} 14. Ng3 {[%clk 01:08:49]} {[%emt 00:05:01]} Bg7
{[%clk 00:43:13]} {[%emt 00:00:29]} 15. Bc2 {[%clk 01:07:31]} {[%emt 00:01:49]}
d4 {[%clk 00:31:28]} {[%emt 00:12:15]} 16. Bd2 {[%clk 01:06:32]} {[%emt
00:01:28]} Nd7 {[%clk 00:30:51]} {[%emt 00:01:08]} 17. cxd4 {[%clk 01:04:37]}
{[%emt 00:02:25]} exd4 {[%clk 00:31:01]} {[%emt 00:00:20]} 18. Nh2 {[%clk
01:03:54]} {[%emt 00:01:12]} Ne7 {[%clk 00:21:33]} {[%emt 00:09:58]} 19. Ba5
{[%clk 01:01:06]} {[%emt 00:03:19]} Qb8 {[%clk 00:21:56]} {[%emt 00:00:07]} 20.
Bb3 {[%clk 00:57:25]} {[%emt 00:04:11]} Bxb3 {[%clk 00:19:28]} {[%emt
00:02:59]} 21. axb3 {[%clk 00:57:49]} {[%emt 00:00:06]} b4 {[%clk 00:19:37]}
{[%emt 00:00:21]} 22. Rdc1 {[%clk 00:53:28]} {[%emt 00:04:51]} c5 {[%clk
00:19:41]} {[%emt 00:00:26]} 23. Nf3 {[%clk 00:52:03]} {[%emt 00:01:55]} Nc6
{[%clk 00:18:26]} {[%emt 00:01:45]} 24. Ra4 {[%clk 00:42:42]} {[%emt 00:09:51]}
Re6 {[%clk 00:18:07]} {[%emt 00:00:49]} 25. Nf1 {[%clk 00:41:28]} {[%emt
00:01:43]} Bf8 {[%clk 00:13:41]} {[%emt 00:04:56]} 26. N1d2 {[%clk 00:38:43]}
{[%emt 00:03:15]} Qb7 {[%clk 00:12:11]} {[%emt 00:02:01]} 27. Qf1 {[%clk
00:34:22]} {[%emt 00:04:50]} Rae8 {[%clk 00:12:18]} {[%emt 00:00:23]} 28. Nc4
{[%clk 00:32:28]} {[%emt 00:02:24]} Qb8 {[%clk 00:11:04]} {[%emt 00:01:44]} 29.
g3 {[%clk 00:31:12]} {[%emt 00:01:46]} Rf6 {[%clk 00:03:29]} {[%emt 00:08:05]}
30. Qg2 {[%clk 00:31:28]} {[%emt 00:00:14]} h5 {[%clk 00:03:38]} {[%emt
00:00:21]} 31. Raa1 {[%clk 00:29:14]} {[%emt 00:02:44]} Bd6 {[%clk 00:02:18]}
{[%emt 00:01:50]} 32. Rd1 {[%clk 00:27:33]} {[%emt 00:02:11]} Qb5 {[%clk
00:02:32]} {[%emt 00:00:17]} 33. Nxd6 {[%clk 00:25:01]} {[%emt 00:03:02]} Rxd6
{[%clk 00:02:58]} {[%emt 00:00:04]} 34. Bc7 {[%clk 00:25:25]} {[%emt 00:00:06]}
Rf6 {[%clk 00:03:24]} {[%emt 00:00:04]} 35. Bf4 {[%clk 00:23:44]} {[%emt
00:02:11]} a5 {[%clk 00:02:11]} {[%emt 00:01:44]} 36. Bg5 {[%clk 00:20:23]}
{[%emt 00:03:50]} Rxf3 {[%clk 00:02:16]} {[%emt 00:00:25]} 37. Qxf3 {[%clk
00:20:46]} {[%emt 00:00:07]} c4 {[%clk 00:02:44]} {[%emt 00:00:03]} 38. Bf4
{[%clk 00:20:10]} {[%emt 00:01:05]} c3 {[%clk 00:01:51]} {[%emt 00:01:23]} 39.
Qe2 {[%clk 00:18:45]} {[%emt 00:01:56]} Nc5 {[%clk 00:00:45]} {[%emt 00:01:35]}
40. Qc2 {[%clk 00:19:09]} {[%emt 00:00:06]} Re6 {[%clk 00:00:57]} {[%emt
00:00:18]} 41. g4 {[%clk 00:18:49]} {[%emt 00:00:50]} Nd7 {[%clk 00:00:37]}
{[%emt 00:00:51]} 42. Bg3 {[%clk 00:18:51]} {[%emt 00:00:27]} hxg4 {[%clk
00:00:34]} {[%emt 00:00:34]} 43. hxg4 {[%clk 00:19:16]} {[%emt 00:00:04]} Qg5
{[%clk 00:00:53]} {[%emt 00:00:10]} 44. Kg2 {[%clk 00:15:29]} {[%emt 00:04:18]}
Qxg4 {[%clk 00:00:48]} {[%emt 00:00:35]} 45. f3 {[%clk 00:15:52]} {[%emt
00:00:07]} Qg5 {[%clk 00:01:09]} {[%emt 00:00:09]} 46. f4 {[%clk 00:16:14]}
{[%emt 00:00:07]} Qb5 {[%clk 00:00:42]} {[%emt 00:00:57]} 47. Rh1 {[%clk
00:14:27]} {[%emt 00:02:17]} Nc5 {[%clk 00:01:09]} {[%emt 00:00:03]} 48. Rad1
{[%clk 00:14:54]} {[%emt 00:00:03]} cxb2 {[%clk 00:00:40]} {[%emt 00:00:59]} 49.
Kf3 {[%clk 00:13:58]} {[%emt 00:01:26]} Kf8 {[%clk 00:00:32]} {[%emt 00:00:38]}
50. Rh8+ {[%clk 00:08:46]} {[%emt 00:05:42]} Ke7 {[%clk 00:00:59]} {[%emt
00:00:04]} 51. Rh2 {[%clk 00:08:15]} {[%emt 00:01:01]} a4 {[%clk 00:01:08]}
{[%emt 00:00:21]} 52. Kg4 {[%clk 00:02:56]} {[%emt 00:05:49]} a3 {[%clk
00:00:37]} {[%emt 00:01:02]} 53. f5 {[%clk 00:03:14]} {[%emt 00:00:12]} gxf5+
{[%clk 00:01:01]} {[%emt 00:00:06]} 54. exf5 {[%clk 00:03:43]} Re3 {[%clk
00:00:57]} {[%emt 00:00:34]} 55. Re2 {[%clk 00:03:15]} {[%emt 00:00:58]} Na5
{[%clk 00:00:40]} {[%emt 00:00:47]} 56. Rxe3+ {[%clk 00:02:51]} {[%emt
00:00:54]} dxe3 {[%clk 00:01:09]} {[%emt 00:00:02]} 57. d4 {[%clk 00:03:20]}
Nd7 {[%clk 00:00:35]} {[%emt 00:01:04]} 58. d5 {[%clk 00:02:57]} {[%emt
00:00:53]} e2 {[%clk 00:00:32]} {[%emt 00:00:33]} 59. Rd2 {[%clk 00:01:30]}
{[%emt 00:01:58]} Ne5+ {[%clk 00:00:33]} {[%emt 00:00:29]} 60. Kf4 {[%clk
00:00:32]} {[%emt 00:01:28]} a2 {[%clk 00:00:32]} {[%emt 00:00:30]} 61. Rxe2
{[%clk 00:00:45]} {[%emt 00:00:17]} f6 {[%clk 00:00:32]} {[%emt 00:00:31]} 62.
Rh2 {[%clk 00:00:39]} {[%emt 00:00:35]} Qf1+ {[%clk 00:00:54]} {[%emt
00:00:08]} 63. Bf2 {[%clk 00:01:03]} {[%emt 00:00:06]} Qc1+ {[%clk 00:01:22]}
{[%emt 00:00:02]} 0-1